[Event "*** Titled Tuesday Blitz"]
[Site "Chess.com"]
[Date "2021.03.09"]
[Round "10"]
[White "Geller_Jakov"]
[Black "BigAl"]
[Result "0-1"]
[WhiteElo "2617"]
[BlackElo "2536"]
[TimeControl "180+1"]
[EndTime "11:59:39 PST"]
[Termination "BigAl won by checkmate"]

1. e4 {[%clk 0:03:00.9]} 1... c6 {[%clk 0:03:00]} 2. d4 {[%clk 0:03:00.7]} 2...
d5 {[%clk 0:03:00]} 3. exd5 {[%clk 0:03:01.6]} 3... cxd5 {[%clk 0:03:00.4]} 4.
c3 {[%clk 0:03:02.3]} 4... Nc6 {[%clk 0:02:59]} 5. Bf4 {[%clk 0:03:02.4]} 5...
g6 {[%clk 0:02:54.6]} 6. h3 {[%clk 0:03:00.8]} 6... Bg7 {[%clk 0:02:54.2]} 7.
Nf3 {[%clk 0:03:01]} 7... Bf5 {[%clk 0:02:53.3]} 8. Bd3 {[%clk 0:03:00.6]} 8...
Nf6 {[%clk 0:02:51.5]} 9. O-O {[%clk 0:02:59.3]} 9... O-O {[%clk 0:02:51.3]} 10.
Re1 {[%clk 0:02:59.5]} 10... Ne4 {[%clk 0:02:40.9]} 11. Qe2 {[%clk 0:02:58.2]}
11... Qb6 {[%clk 0:02:36.2]} 12. a4 {[%clk 0:02:41.2]} 12... Na5 {[%clk
0:02:28.7]} 13. Na3 {[%clk 0:02:28.9]} 13... a6 {[%clk 0:02:13.6]} 14. g4 {[%clk
0:02:12]} 14... Be6 {[%clk 0:02:08.9]} 15. Bxe4 {[%clk 0:01:59.3]} 15... dxe4
{[%clk 0:02:09]} 16. Ng5 {[%clk 0:01:57.1]} 16... Bd5 {[%clk 0:01:38.2]} 17. b4
{[%clk 0:01:30.6]} 17... Nc6 {[%clk 0:01:29]} 18. a5 {[%clk 0:01:28.4]} 18...
Qd8 {[%clk 0:01:18.8]} 19. Nxe4 {[%clk 0:01:28.4]} 19... f5 {[%clk 0:01:08.6]}
20. gxf5 {[%clk 0:01:25.3]} 20... Rxf5 {[%clk 0:01:08.7]} 21. Bg3 {[%clk
0:01:23.7]} 21... e5 {[%clk 0:01:04]} 22. Nc4 {[%clk 0:00:47.1]} 22... exd4
{[%clk 0:00:52.6]} 23. Ncd6 {[%clk 0:00:47.4]} 23... dxc3 {[%clk 0:00:47]} 24.
Nxf5 {[%clk 0:00:38.7]} 24... gxf5 {[%clk 0:00:46.5]} 25. Nd6 {[%clk 0:00:30.1]}
25... Nd4 {[%clk 0:00:44.1]} 26. Qd3 {[%clk 0:00:30.5]} 26... Nf3+ {[%clk
0:00:40.8]} 27. Kf1 {[%clk 0:00:30]} 27... Nd2+ {[%clk 0:00:18.5]} 28. Kg1
{[%clk 0:00:24]} 28... Nf3+ {[%clk 0:00:18.3]} 29. Kf1 {[%clk 0:00:24.1]} 29...
Nd2+ {[%clk 0:00:11.4]} 30. Kg1 {[%clk 0:00:20.8]} 30... Bc6 {[%clk 0:00:11.6]}
31. Re3 {[%clk 0:00:12.9]} 31... Qf6 {[%clk 0:00:11.8]} 32. Rae1 {[%clk
0:00:11.8]} 32... h6 {[%clk 0:00:10.9]} 33. Re6 {[%clk 0:00:11.3]} 33... Qg5
{[%clk 0:00:09.7]} 34. R1e3 {[%clk 0:00:09.4]} 34... Rd8 {[%clk 0:00:07.5]} 35.
Qc4 {[%clk 0:00:09.5]} 35... Kh7 {[%clk 0:00:07.2]} 36. Nf7 {[%clk 0:00:09.9]}
36... Nxc4 {[%clk 0:00:06.3]} 37. Nxg5+ {[%clk 0:00:09.7]} 37... hxg5 {[%clk
0:00:07.2]} 38. Re1 {[%clk 0:00:09.2]} 38... f4 {[%clk 0:00:06.2]} 39. Bh2
{[%clk 0:00:09.5]} 39... Nd2 {[%clk 0:00:06.1]} 40. Re7 {[%clk 0:00:08.4]} 40...
Nf3+ {[%clk 0:00:06.3]} 41. Kf1 {[%clk 0:00:09.2]} 41... Nxh2+ {[%clk
0:00:06.4]} 42. Ke2 {[%clk 0:00:08.3]} 42... Rd2# {[%clk 0:00:06.5]} 0-1

[Event "*** Titled Tuesday Blitz"]
[Site "Chess.com"]
[Date "2021.03.09"]
[Round "10"]
[White "MatyChess1"]
[Black "dusanacns"]
[Result "1/2-1/2"]
[WhiteElo "2594"]
[BlackElo "2725"]
[TimeControl "180+1"]
[EndTime "11:59:40 PST"]
[Termination "Game drawn by repetition"]

1. e4 {[%clk 0:03:00.9]} 1... g6 {[%clk 0:02:58.6]} 2. d4 {[%clk 0:02:59.2]}
2... Bg7 {[%clk 0:02:59.5]} 3. c3 {[%clk 0:02:59.8]} 3... c6 {[%clk 0:03:00]} 4.
Bd3 {[%clk 0:02:59.3]} 4... d5 {[%clk 0:02:55.1]} 5. Nd2 {[%clk 0:02:59.3]} 5...
dxe4 {[%clk 0:02:55.1]} 6. Nxe4 {[%clk 0:03:00]} 6... Nf6 {[%clk 0:02:55.9]} 7.
Nd2 {[%clk 0:02:54.8]} 7... e5 {[%clk 0:02:40.6]} 8. Qe2 {[%clk 0:02:34.7]} 8...
O-O {[%clk 0:02:33.1]} 9. dxe5 {[%clk 0:02:34.1]} 9... Nh5 {[%clk 0:02:01.6]}
10. Nc4 {[%clk 0:02:29.8]} 10... Bg4 {[%clk 0:01:49.3]} 11. f3 {[%clk
0:01:35.4]} 11... Be6 {[%clk 0:01:43.2]} 12. f4 {[%clk 0:01:25.4]} 12... f6
{[%clk 0:01:32.3]} 13. g3 {[%clk 0:01:07.2]} 13... b5 {[%clk 0:01:14.4]} 14.
exf6 {[%clk 0:00:52.3]} 14... Rxf6 {[%clk 0:00:34.6]} 15. Ne5 {[%clk 0:00:51]}
15... Nd7 {[%clk 0:00:31.7]} 16. Ngf3 {[%clk 0:00:46.3]} 16... Nc5 {[%clk
0:00:29.4]} 17. Bc2 {[%clk 0:00:39.8]} 17... Bd5 {[%clk 0:00:24.8]} 18. Be3
{[%clk 0:00:38.5]} 18... Nd7 {[%clk 0:00:19.8]} 19. O-O {[%clk 0:00:31.5]} 19...
Re6 {[%clk 0:00:19.5]} 20. Nd4 {[%clk 0:00:20.5]} 20... Rxe5 {[%clk 0:00:17.2]}
21. fxe5 {[%clk 0:00:20]} 21... Nxe5 {[%clk 0:00:18.1]} 22. Bb3 {[%clk
0:00:17.3]} 22... Nf6 {[%clk 0:00:11]} 23. Rad1 {[%clk 0:00:13.6]} 23... Qd7
{[%clk 0:00:08.8]} 24. Bg5 {[%clk 0:00:10.9]} 24... Rf8 {[%clk 0:00:02.7]} 25.
Qxe5 {[%clk 0:00:08.5]} 25... Bxb3 {[%clk 0:00:02.3]} 26. axb3 {[%clk
0:00:05.1]} 26... Re8 {[%clk 0:00:02.4]} 27. Bxf6 {[%clk 0:00:04.1]} 27... Rxe5
{[%clk 0:00:02.2]} 28. Bxe5 {[%clk 0:00:05]} 28... Bxe5 {[%clk 0:00:01.9]} 29.
Nf3 {[%clk 0:00:04.1]} 29... Qe7 {[%clk 0:00:01.9]} 30. Nxe5 {[%clk 0:00:04.5]}
30... Qxe5 {[%clk 0:00:02.8]} 31. Rfe1 {[%clk 0:00:05.3]} 31... Qc5+ {[%clk
0:00:03.1]} 32. Kg2 {[%clk 0:00:04.8]} 32... b4 {[%clk 0:00:04]} 33. c4 {[%clk
0:00:05.2]} 33... Qf5 {[%clk 0:00:03.8]} 34. Rd2 {[%clk 0:00:04.2]} 34... Qg4
{[%clk 0:00:03.7]} 35. Re7 {[%clk 0:00:03.6]} 35... Kf8 {[%clk 0:00:03.1]} 36.
Rxa7 {[%clk 0:00:03.5]} 36... Qe4+ {[%clk 0:00:03.3]} 37. Kh3 {[%clk 0:00:03.7]}
37... Qf5+ {[%clk 0:00:03.3]} 38. Kg2 {[%clk 0:00:03.7]} 38... Qe4+ {[%clk
0:00:03.4]} 39. Kh3 {[%clk 0:00:04.3]} 39... Qf5+ {[%clk 0:00:03.4]} 40. Kg2
{[%clk 0:00:04.9]} 40... Qe4+ {[%clk 0:00:03.7]} 1/2-1/2

[Event "*** Titled Tuesday Blitz"]
[Site "Chess.com"]
[Date "2021.03.09"]
[Round "10"]
[White "Meri-Arabidze"]
[Black "Jan1401"]
[Result "1-0"]
[WhiteElo "2568"]
[BlackElo "2417"]
[TimeControl "180+1"]
[EndTime "11:59:40 PST"]
[Termination "Meri-Arabidze won by resignation"]

1. d4 {[%clk 0:03:00.9]} 1... e6 {[%clk 0:03:00.1]} 2. c4 {[%clk 0:03:01.8]}
2... Nf6 {[%clk 0:02:59.8]} 3. Nf3 {[%clk 0:03:02.7]} 3... Bb4+ {[%clk
0:02:59.6]} 4. Bd2 {[%clk 0:03:02.4]} 4... Qe7 {[%clk 0:02:59.4]} 5. g3 {[%clk
0:03:02]} 5... Nc6 {[%clk 0:02:58.1]} 6. Nc3 {[%clk 0:03:01.2]} 6... Bxc3 {[%clk
0:02:57.3]} 7. Bxc3 {[%clk 0:03:00.8]} 7... Ne4 {[%clk 0:02:57.4]} 8. Qc2 {[%clk
0:02:59]} 8... Nxc3 {[%clk 0:02:53.5]} 9. Qxc3 {[%clk 0:02:59.1]} 9... O-O
{[%clk 0:02:50.9]} 10. Bg2 {[%clk 0:02:58.5]} 10... d6 {[%clk 0:02:51.1]} 11.
O-O {[%clk 0:02:57.9]} 11... e5 {[%clk 0:02:51.1]} 12. d5 {[%clk 0:02:56.9]}
12... Nd8 {[%clk 0:02:50.9]} 13. e4 {[%clk 0:02:55.9]} 13... f5 {[%clk 0:02:49]}
14. Ne1 {[%clk 0:02:55.1]} 14... f4 {[%clk 0:02:39.7]} 15. f3 {[%clk 0:02:54.7]}
15... g5 {[%clk 0:02:35.8]} 16. g4 {[%clk 0:02:53]} 16... h5 {[%clk 0:02:32.6]}
17. h3 {[%clk 0:02:53.3]} 17... hxg4 {[%clk 0:02:32.5]} 18. hxg4 {[%clk
0:02:52.1]} 18... Kg7 {[%clk 0:02:32.7]} 19. Kf2 {[%clk 0:02:52.1]} 19... Rh8
{[%clk 0:02:31.3]} 20. Nd3 {[%clk 0:02:52.3]} 20... Nf7 {[%clk 0:02:30.1]} 21.
Rh1 {[%clk 0:02:52.1]} 21... Bd7 {[%clk 0:02:27.4]} 22. c5 {[%clk 0:02:50.7]}
22... Bb5 {[%clk 0:02:17.5]} 23. cxd6 {[%clk 0:02:49.9]} 23... cxd6 {[%clk
0:02:14.9]} 24. Rac1 {[%clk 0:02:43]} 24... Rhc8 {[%clk 0:01:59.5]} 25. Qd2
{[%clk 0:02:40.9]} 25... Qd8 {[%clk 0:01:53.4]} 26. Rc3 {[%clk 0:02:38]} 26...
Qb6+ {[%clk 0:01:52.9]} 27. Ke2 {[%clk 0:02:36]} 27... Rxc3 {[%clk 0:01:37]} 28.
bxc3 {[%clk 0:02:36.9]} 28... Rc8 {[%clk 0:01:26.2]} 29. Rc1 {[%clk 0:02:30.8]}
29... Qa6 {[%clk 0:01:19.8]} 30. Bf1 {[%clk 0:02:27.4]} 30... Bxd3+ {[%clk
0:01:17.7]} 31. Qxd3 {[%clk 0:02:27.6]} 31... Qxa2+ {[%clk 0:01:17.8]} 32. Rc2
{[%clk 0:02:27.9]} 32... Qc4 {[%clk 0:01:16.2]} 33. Qxc4 {[%clk 0:02:27.6]}
33... Rxc4 {[%clk 0:01:16.3]} 34. Kd3 {[%clk 0:02:28.5]} 34... Rc7 {[%clk
0:01:15.3]} 35. Ra2 {[%clk 0:02:28.2]} 35... b6 {[%clk 0:01:12.2]} 36. Kc2
{[%clk 0:02:24.3]} 36... Nh8 {[%clk 0:01:09.2]} 37. Bb5 {[%clk 0:02:21.9]} 37...
Ng6 {[%clk 0:01:08.3]} 38. Kd3 {[%clk 0:02:20.6]} 38... Nh4 {[%clk 0:01:08.4]}
39. Rf2 {[%clk 0:02:20.2]} 39... Rc5 {[%clk 0:01:04]} 40. Bc6 {[%clk 0:02:19.5]}
40... Ra5 {[%clk 0:01:00.9]} 41. Kc4 {[%clk 0:02:18.2]} 41... Ra1 {[%clk
0:00:59]} 42. Kb5 {[%clk 0:02:15.7]} 42... Kf6 {[%clk 0:00:58]} 43. Bb7 {[%clk
0:02:11.8]} 43... Rc1 {[%clk 0:00:49.1]} 44. c4 {[%clk 0:02:10.8]} 44... Rc3
{[%clk 0:00:48.9]} 45. Kc6 {[%clk 0:02:07]} 45... Ke7 {[%clk 0:00:47.9]} 46. Ba6
{[%clk 0:02:05.8]} 46... Nxf3 {[%clk 0:00:46.4]} 47. Rf1 {[%clk 0:02:04]} 47...
Nd4+ {[%clk 0:00:42.4]} 48. Kb7 {[%clk 0:02:04.1]} 48... f3 {[%clk 0:00:42.3]}
49. Rh1 {[%clk 0:02:02.1]} 49... f2 {[%clk 0:00:41]} 50. c5 {[%clk 0:01:59.9]}
50... bxc5 {[%clk 0:00:39.8]} 51. Kxa7 {[%clk 0:01:59.4]} 51... Rf3 {[%clk
0:00:32.6]} 52. Bf1 {[%clk 0:01:56.8]} 52... Nc2 {[%clk 0:00:32]} 53. Kb6 {[%clk
0:01:46.3]} 53... Ne3 {[%clk 0:00:31.9]} 54. Kc6 {[%clk 0:01:43.6]} 54... Rg3
{[%clk 0:00:30.5]} 55. Rh7+ {[%clk 0:01:42.2]} 55... Kf6 {[%clk 0:00:30.2]} 56.
Be2 {[%clk 0:01:41.7]} 56... f1=Q {[%clk 0:00:25]} 57. Bxf1 {[%clk 0:01:41.4]}
57... Nxf1 {[%clk 0:00:25.2]} 58. Kxd6 {[%clk 0:01:42.3]} 58... c4 {[%clk
0:00:24.8]} 59. Rh8 {[%clk 0:01:32.6]} 59... c3 {[%clk 0:00:22.5]} 60. Rf8+
{[%clk 0:01:32.5]} 60... Kg7 {[%clk 0:00:21.7]} 61. Rxf1 {[%clk 0:01:33.4]}
61... Re3 {[%clk 0:00:17.7]} 62. Kxe5 {[%clk 0:01:33.1]} 62... c2 {[%clk
0:00:15]} 63. Rc1 {[%clk 0:01:32.5]} 63... Rc3 {[%clk 0:00:15.2]} 64. Ke6 {[%clk
0:01:28.3]} 64... Kg6 {[%clk 0:00:14.1]} 65. e5 {[%clk 0:01:28.3]} 65... Kg7
{[%clk 0:00:13.1]} 66. d6 {[%clk 0:01:28.6]} 66... Kf8 {[%clk 0:00:12.3]} 67.
Kf6 {[%clk 0:01:23.2]} 67... Rf3+ {[%clk 0:00:11]} 68. Kxg5 {[%clk 0:01:22.9]}
68... Kf7 {[%clk 0:00:10.8]} 69. Rxc2 {[%clk 0:01:21.8]} 1-0

[Event "*** Titled Tuesday Blitz"]
[Site "Chess.com"]
[Date "2021.03.09"]
[Round "10"]
[White "Omk124"]
[Black "Gerodot71"]
[Result "1-0"]
[WhiteElo "2472"]
[BlackElo "2572"]
[TimeControl "180+1"]
[EndTime "11:59:41 PST"]
[Termination "Omk124 won on time"]

1. e4 {[%clk 0:03:00.9]} 1... e5 {[%clk 0:02:59.2]} 2. Nf3 {[%clk 0:03:01]} 2...
Nc6 {[%clk 0:02:58.6]} 3. Bc4 {[%clk 0:03:01]} 3... Bc5 {[%clk 0:02:57.1]} 4. c3
{[%clk 0:02:58.4]} 4... Nf6 {[%clk 0:02:56.8]} 5. d3 {[%clk 0:02:59]} 5... d6
{[%clk 0:02:55.6]} 6. O-O {[%clk 0:02:57.6]} 6... a6 {[%clk 0:02:55.7]} 7. Bb3
{[%clk 0:02:49.8]} 7... Ba7 {[%clk 0:02:50.2]} 8. Nbd2 {[%clk 0:02:48.3]} 8...
h6 {[%clk 0:02:49.2]} 9. h3 {[%clk 0:02:41.6]} 9... g5 {[%clk 0:02:48.5]} 10.
Nc4 {[%clk 0:02:28.8]} 10... g4 {[%clk 0:02:45.5]} 11. hxg4 {[%clk 0:02:27.5]}
11... Nxg4 {[%clk 0:02:46.4]} 12. d4 {[%clk 0:02:25.1]} 12... Qf6 {[%clk
0:02:39.1]} 13. Be3 {[%clk 0:02:12]} 13... Rg8 {[%clk 0:02:16.2]} 14. dxe5
{[%clk 0:01:34]} 14... Ncxe5 {[%clk 0:01:33.6]} 15. Ncxe5 {[%clk 0:01:28.5]}
15... Nxe5 {[%clk 0:01:18.9]} 16. Nxe5 {[%clk 0:01:24.6]} 16... Qxe5 {[%clk
0:01:19.8]} 17. Bxa7 {[%clk 0:01:18.9]} 17... Rxa7 {[%clk 0:01:20.7]} 18. Qf3
{[%clk 0:01:17.8]} 18... Be6 {[%clk 0:01:15.8]} 19. Bxe6 {[%clk 0:01:16.6]}
19... fxe6 {[%clk 0:01:11.7]} 20. Qe3 {[%clk 0:01:16.8]} 20... Ra8 {[%clk
0:01:08.1]} 21. Qxh6 {[%clk 0:01:12.9]} 21... Rh8 {[%clk 0:00:57.4]} 22. Qg6+
{[%clk 0:01:13]} 22... Ke7 {[%clk 0:00:57.6]} 23. Qg3 {[%clk 0:00:53.1]} 23...
Qh5 {[%clk 0:00:46.6]} 24. Qg7+ {[%clk 0:00:43.4]} 24... Kd8 {[%clk 0:00:25.4]}
25. f3 {[%clk 0:00:43.4]} 25... Qh4 {[%clk 0:00:22.1]} 26. e5 {[%clk 0:00:33.3]}
26... Kc8 {[%clk 0:00:17.5]} 27. exd6 {[%clk 0:00:32.7]} 27... cxd6 {[%clk
0:00:18.4]} 28. Rad1 {[%clk 0:00:32.7]} 28... Kb8 {[%clk 0:00:14.5]} 29. Rxd6
{[%clk 0:00:20.7]} 29... Qh2+ {[%clk 0:00:07.4]} 30. Kf2 {[%clk 0:00:21.1]}
30... Qxd6 {[%clk 0:00:07.2]} 31. Qxh8+ {[%clk 0:00:21.2]} 31... Kc7 {[%clk
0:00:07.1]} 32. Qg7+ {[%clk 0:00:20.5]} 32... Kb6 {[%clk 0:00:06.2]} 33. Qd4+
{[%clk 0:00:20.5]} 33... Qxd4+ {[%clk 0:00:04.8]} 34. cxd4 {[%clk 0:00:21.4]}
34... Rc8 {[%clk 0:00:03.5]} 35. Re1 {[%clk 0:00:21.7]} 35... Rc2+ {[%clk
0:00:02.3]} 36. Re2 {[%clk 0:00:22.1]} 36... Rc6 {[%clk 0:00:03.1]} 37. Rd2
{[%clk 0:00:21.5]} 37... Rd6 {[%clk 0:00:03.6]} 38. Ke3 {[%clk 0:00:21.5]} 38...
Kc6 {[%clk 0:00:02.5]} 39. Ke4 {[%clk 0:00:22]} 39... Rd8 {[%clk 0:00:02]} 40.
g4 {[%clk 0:00:22]} 40... Kd7 {[%clk 0:00:01.5]} 41. Rh2 {[%clk 0:00:21.4]} 1-0

[Event "*** Titled Tuesday Blitz"]
[Site "Chess.com"]
[Date "2021.03.09"]
[Round "10"]
[White "Barbus89"]
[Black "Pantata007"]
[Result "0-1"]
[WhiteElo "2210"]
[BlackElo "2277"]
[TimeControl "180+1"]
[EndTime "11:59:43 PST"]
[Termination "Pantata007 won on time"]

1. Nf3 {[%clk 0:03:00.9]} 1... d5 {[%clk 0:02:59]} 2. g3 {[%clk 0:02:59.8]} 2...
Nf6 {[%clk 0:02:58.5]} 3. Bg2 {[%clk 0:02:59.7]} 3... c6 {[%clk 0:02:58.8]} 4.
O-O {[%clk 0:02:58.5]} 4... Bg4 {[%clk 0:02:58.8]} 5. d4 {[%clk 0:02:58.1]} 5...
Nbd7 {[%clk 0:02:58.1]} 6. c4 {[%clk 0:02:54]} 6... e6 {[%clk 0:02:57.7]} 7.
cxd5 {[%clk 0:02:54.9]} 7... exd5 {[%clk 0:02:57.4]} 8. Ne5 {[%clk 0:02:52.8]}
8... Bf5 {[%clk 0:02:39.6]} 9. f4 {[%clk 0:02:47.3]} 9... Be7 {[%clk 0:02:34.1]}
10. Nc3 {[%clk 0:02:46.3]} 10... O-O {[%clk 0:02:33.5]} 11. e3 {[%clk
0:02:29.8]} 11... h5 {[%clk 0:02:16.9]} 12. Rb1 {[%clk 0:02:12]} 12... a5 {[%clk
0:02:16]} 13. Ra1 {[%clk 0:02:09.6]} 13... Qc7 {[%clk 0:02:13.8]} 14. Bd2 {[%clk
0:02:07.6]} 14... b5 {[%clk 0:01:58.1]} 15. Rc1 {[%clk 0:02:00.2]} 15... Qb6
{[%clk 0:01:57.4]} 16. Nxc6 {[%clk 0:01:53.9]} 16... Qxc6 {[%clk 0:01:53.5]} 17.
Nxd5 {[%clk 0:01:53.6]} 17... Qd6 {[%clk 0:01:52.7]} 18. Rc6 {[%clk 0:01:50.8]}
18... Qxd5 {[%clk 0:01:10.7]} 19. Bxd5 {[%clk 0:01:45.7]} 19... Nxd5 {[%clk
0:01:11.6]} 20. Qxh5 {[%clk 0:01:43.3]} 20... g6 {[%clk 0:01:06.7]} 21. Qf3
{[%clk 0:01:39.4]} 21... N7f6 {[%clk 0:01:05]} 22. Rfc1 {[%clk 0:01:27.3]} 22...
Be4 {[%clk 0:01:04.4]} 23. Qe2 {[%clk 0:01:25.1]} 23... Rfb8 {[%clk 0:00:56.2]}
24. b3 {[%clk 0:01:04.1]} 24... Ba3 {[%clk 0:00:48.1]} 25. R1c5 {[%clk
0:00:46.4]} 25... Bxc5 {[%clk 0:00:44.4]} 26. Rxc5 {[%clk 0:00:47.3]} 26... b4
{[%clk 0:00:36.6]} 27. Qc4 {[%clk 0:00:37.6]} 27... Nb6 {[%clk 0:00:13.4]} 28.
Qc1 {[%clk 0:00:12.3]} 28... Nbd7 {[%clk 0:00:12.4]} 29. Rc7 {[%clk 0:00:10.1]}
29... Nb6 {[%clk 0:00:08.4]} 30. Qc5 {[%clk 0:00:07.1]} 30... Nfd5 {[%clk
0:00:08]} 31. Rc6 {[%clk 0:00:05.4]} 31... Rc8 {[%clk 0:00:06.6]} 32. Rxc8+
{[%clk 0:00:04]} 32... Rxc8 {[%clk 0:00:07.5]} 33. Qxa5 {[%clk 0:00:03.1]} 33...
Rc2 {[%clk 0:00:07.7]} 34. Bxb4 {[%clk 0:00:01.6]} 34... Rg2+ {[%clk 0:00:05.3]}
35. Kf1 {[%clk 0:00:02.1]} 35... Nxe3+ {[%clk 0:00:05.2]} 36. Ke1 {[%clk
0:00:02.6]} 36... Bd3 {[%clk 0:00:01.3]} 0-1

[Event "*** Titled Tuesday Blitz"]
[Site "Chess.com"]
[Date "2021.03.09"]
[Round "10"]
[White "Blitzking642"]
[Black "ValeriyGrinev"]
[Result "1-0"]
[WhiteElo "2430"]
[BlackElo "2545"]
[TimeControl "180+1"]
[EndTime "11:59:44 PST"]
[Termination "Blitzking642 won by checkmate"]

1. e4 {[%clk 0:03:00.9]} 1... c5 {[%clk 0:03:00.1]} 2. Nf3 {[%clk 0:03:00.7]}
2... e6 {[%clk 0:03:00.6]} 3. d4 {[%clk 0:03:00.5]} 3... cxd4 {[%clk 0:03:01.5]}
4. Nxd4 {[%clk 0:03:00.8]} 4... Nc6 {[%clk 0:03:02.1]} 5. Nc3 {[%clk 0:02:58.5]}
5... Qc7 {[%clk 0:03:02.4]} 6. Be2 {[%clk 0:02:57.7]} 6... a6 {[%clk 0:03:01.7]}
7. O-O {[%clk 0:02:57.1]} 7... Nf6 {[%clk 0:03:02.1]} 8. Be3 {[%clk 0:02:54.5]}
8... Bb4 {[%clk 0:03:01.9]} 9. Nxc6 {[%clk 0:02:54]} 9... bxc6 {[%clk
0:03:01.5]} 10. Qd4 {[%clk 0:02:53.4]} 10... Rb8 {[%clk 0:02:56.5]} 11. a3
{[%clk 0:02:33.1]} 11... Be7 {[%clk 0:02:47]} 12. e5 {[%clk 0:02:17.5]} 12...
Nd5 {[%clk 0:02:30.2]} 13. Nxd5 {[%clk 0:02:17.3]} 13... cxd5 {[%clk 0:02:30]}
14. c4 {[%clk 0:02:08.2]} 14... dxc4 {[%clk 0:02:21.6]} 15. Bxc4 {[%clk
0:02:07.3]} 15... O-O {[%clk 0:02:22.3]} 16. Rfc1 {[%clk 0:02:06.6]} 16... Qd8
{[%clk 0:02:01.5]} 17. Rd1 {[%clk 0:01:59.5]} 17... Qc7 {[%clk 0:02:00]} 18.
Rac1 {[%clk 0:01:55.9]} 18... Qb7 {[%clk 0:02:00.3]} 19. b4 {[%clk 0:01:49.5]}
19... a5 {[%clk 0:02:00.5]} 20. Rb1 {[%clk 0:01:38]} 20... axb4 {[%clk 0:02:00]}
21. axb4 {[%clk 0:01:38.9]} 21... Qa8 {[%clk 0:01:42.2]} 22. Bf1 {[%clk
0:01:27.7]} 22... Qa4 {[%clk 0:01:32]} 23. b5 {[%clk 0:01:13.8]} 23... Qxd4
{[%clk 0:01:32]} 24. Bxd4 {[%clk 0:01:14.7]} 24... d6 {[%clk 0:01:22.9]} 25. Ba7
{[%clk 0:01:02.9]} 25... Rb7 {[%clk 0:01:22.3]} 26. b6 {[%clk 0:00:52.4]} 26...
dxe5 {[%clk 0:00:51.7]} 27. Ba6 {[%clk 0:00:49.6]} 27... Rd7 {[%clk 0:00:51.6]}
28. Bxc8 {[%clk 0:00:46.5]} 28... Rxd1+ {[%clk 0:00:47.2]} 29. Rxd1 {[%clk
0:00:47.4]} 29... Bc5 {[%clk 0:00:45.5]} 30. Ba6 {[%clk 0:00:36.8]} 30... e4
{[%clk 0:00:43.8]} 31. Rc1 {[%clk 0:00:33.7]} 31... Bd4 {[%clk 0:00:42.7]} 32.
Rc4 {[%clk 0:00:26.3]} 32... Rd8 {[%clk 0:00:22.3]} 33. Rxd4 {[%clk 0:00:18.1]}
33... Rxd4 {[%clk 0:00:23.2]} 34. g3 {[%clk 0:00:18.1]} 34... Rd1+ {[%clk
0:00:24.1]} 35. Kg2 {[%clk 0:00:17.8]} 35... e3 {[%clk 0:00:17.2]} 36. fxe3
{[%clk 0:00:16.8]} 36... Rd2+ {[%clk 0:00:17.2]} 37. Kh3 {[%clk 0:00:10.5]}
37... g5 {[%clk 0:00:16.6]} 38. b7 {[%clk 0:00:09.1]} 38... h5 {[%clk
0:00:17.5]} 39. b8=Q+ {[%clk 0:00:08]} 39... Kh7 {[%clk 0:00:18.4]} 40. Bd3+
{[%clk 0:00:04.8]} 40... Rxd3 {[%clk 0:00:16.6]} 41. Qe5 {[%clk 0:00:04.5]}
41... Rd2 {[%clk 0:00:16.5]} 42. Qxg5 {[%clk 0:00:04.3]} 42... h4 {[%clk
0:00:16.5]} 43. Qxh4+ {[%clk 0:00:04.3]} 43... Kg6 {[%clk 0:00:16.8]} 44. Qg4+
{[%clk 0:00:04.4]} 44... Kf6 {[%clk 0:00:17.3]} 45. Bd4+ {[%clk 0:00:04.7]}
45... e5 {[%clk 0:00:17.8]} 46. Qf4+ {[%clk 0:00:04.6]} 46... Kg6 {[%clk
0:00:18.3]} 47. Qxe5 {[%clk 0:00:04.5]} 47... Rf2 {[%clk 0:00:16.4]} 48. Qg7+
{[%clk 0:00:04.4]} 48... Kh5 {[%clk 0:00:16.2]} 49. g4# {[%clk 0:00:04.7]} 1-0

[Event "*** Titled Tuesday Blitz"]
[Site "Chess.com"]
[Date "2021.03.09"]
[Round "10"]
[White "jordanasoul"]
[Black "dhaessel"]
[Result "1-0"]
[WhiteElo "2173"]
[BlackElo "1964"]
[TimeControl "180+1"]
[EndTime "11:59:45 PST"]
[Termination "jordanasoul won on time"]

1. Nf3 {[%clk 0:03:00.9]} 1... Nf6 {[%clk 0:02:57.7]} 2. b3 {[%clk 0:02:57.6]}
2... g6 {[%clk 0:02:48.2]} 3. Bb2 {[%clk 0:02:56.7]} 3... Bg7 {[%clk 0:02:48.8]}
4. c4 {[%clk 0:02:52.7]} 4... c5 {[%clk 0:02:43.3]} 5. e3 {[%clk 0:02:48.7]}
5... O-O {[%clk 0:02:39.3]} 6. d4 {[%clk 0:02:48.8]} 6... cxd4 {[%clk
0:02:36.3]} 7. exd4 {[%clk 0:02:48.7]} 7... d5 {[%clk 0:02:35.1]} 8. Nbd2 {[%clk
0:02:38.8]} 8... Nc6 {[%clk 0:02:34.4]} 9. Be2 {[%clk 0:02:36.2]} 9... Bf5
{[%clk 0:02:24.8]} 10. O-O {[%clk 0:02:34.2]} 10... Nb4 {[%clk 0:02:21.2]} 11.
a3 {[%clk 0:02:29.2]} 11... Nd3 {[%clk 0:02:17.9]} 12. Bc3 {[%clk 0:02:25.5]}
12... Nf4 {[%clk 0:02:10.6]} 13. Ne5 {[%clk 0:02:17.6]} 13... Nxe2+ {[%clk
0:02:08.1]} 14. Qxe2 {[%clk 0:02:17.2]} 14... Rc8 {[%clk 0:02:00.1]} 15. Rac1
{[%clk 0:02:13.5]} 15... Ne4 {[%clk 0:01:51.7]} 16. Nxe4 {[%clk 0:02:06]} 16...
Bxe4 {[%clk 0:01:51.3]} 17. f3 {[%clk 0:01:56]} 17... Bf5 {[%clk 0:01:50.2]} 18.
Rfe1 {[%clk 0:01:54.8]} 18... Be6 {[%clk 0:01:31.5]} 19. c5 {[%clk 0:01:30.8]}
19... b6 {[%clk 0:01:29.1]} 20. b4 {[%clk 0:01:30.3]} 20... a5 {[%clk
0:01:24.6]} 21. cxb6 {[%clk 0:01:24.7]} 21... Qxb6 {[%clk 0:01:17.3]} 22. bxa5
{[%clk 0:01:23.5]} 22... Qa7 {[%clk 0:01:17]} 23. Kh1 {[%clk 0:01:19.4]} 23...
Rc7 {[%clk 0:01:13.4]} 24. f4 {[%clk 0:00:50.6]} 24... Bc8 {[%clk 0:01:08.9]}
25. Bb4 {[%clk 0:00:48.8]} 25... Qb7 {[%clk 0:00:35.5]} 26. a6 {[%clk
0:00:35.5]} 26... Qa7 {[%clk 0:00:32]} 27. Rxc7 {[%clk 0:00:32]} 27... Qxc7
{[%clk 0:00:30.8]} 28. Bc5 {[%clk 0:00:32.5]} 28... f6 {[%clk 0:00:21.2]} 29. a7
{[%clk 0:00:25.5]} 29... Bb7 {[%clk 0:00:19.9]} 30. Nd3 {[%clk 0:00:23.1]} 30...
Re8 {[%clk 0:00:17.2]} 31. Qe6+ {[%clk 0:00:22.7]} 31... Kf8 {[%clk 0:00:15.2]}
32. Rb1 {[%clk 0:00:19.9]} 32... Ba8 {[%clk 0:00:14.1]} 33. Bb6 {[%clk
0:00:17.2]} 33... Qc2 {[%clk 0:00:13.3]} 34. Qe1 {[%clk 0:00:13]} 34... Qxd3
{[%clk 0:00:13.1]} 35. Bc5 {[%clk 0:00:13.2]} 35... Qa6 {[%clk 0:00:11.4]} 36.
h3 {[%clk 0:00:11.4]} 36... Kf7 {[%clk 0:00:10.7]} 37. Rb8 {[%clk 0:00:09.5]}
37... Qc6 {[%clk 0:00:07.8]} 38. Qb4 {[%clk 0:00:09]} 38... f5 {[%clk
0:00:05.5]} 39. Rb6 {[%clk 0:00:07.2]} 39... Qc8 {[%clk 0:00:04.6]} 40. a4
{[%clk 0:00:06.8]} 40... Qd7 {[%clk 0:00:03.5]} 41. a5 {[%clk 0:00:06.8]} 41...
Bf6 {[%clk 0:00:01.8]} 42. a6 {[%clk 0:00:06.8]} 1-0